Workbook

Sheet Compare FY27 FY26 06162026
A1: ATTACHMENT - 1
F2: COMMONWEALTH OF MASSACHUSETTS
D3: INITIAL ALLOCATIONS FOR FISCAL YEAR 2027 AND ALLOCATIONS FOR FISCAL YEAR 2026 COMPARED
E4: FOR WIOA TITLE I ADULT, YOUTH, AND DISLOCATED WORKER
A6: MASSHIRE WORKFORCE AREAS | B6: WIOA TITLE I ADULT | F6: WIOA TITLE I DISLOCATED WORKER | J6: WIOA TITLE I YOUTH
B8: FY 2026 Allocation | C8: Initial FY 2027 Allocation1 | D8: Change from FY 2026 | E8: % Change from FY 2026 | F8: FY 2026 Allocation | G8: Initial FY 2027 Allocation1 | H8: Change from FY 2026 | I8: % Change from FY 2026 | J8: FY 2026 Allocation | K8: Initial FY 2027 Allocation1 | L8: Change from FY 2026 | M8: % Change from FY 2026
A11: Berkshire County | B11: 273390 | C11: 336229 | D11: =C11-B11 -> 62839 | E11: =D11/B11 -> 0.2298511284 | F11: 299163 | G11: 289218 | H11: =G11-F11 -> -9945 | I11: =H11/F11 -> -0.03324274726 | J11: 324758 | K11: 411589 | L11: =K11-J11 -> 86831 | M11: =L11/J11 -> 0.2673713965
A12: Boston | B12: 1732295 | C12: 2025378 | D12: =C12-B12 -> 293083 | E12: 0.1691876961 | F12: 1073340 | G12: 921014 | H12: =G12-F12 -> -152326 | I12: -0.1419177521 | J12: 2220412 | K12: 2677218 | L12: =K12-J12 -> 456806 | M12: 0.2057302879
A13: Bristol County | B13: 721997 | C13: 898211 | D13: 176214 | E13: 0.244064726 | F13: 700192 | G13: 645670 | H13: -54522 | I13: -0.07786721356 | J13: 745794 | K13: 955340 | L13: 209546 | M13: 0.2809703484
A14: Brockton | B14: 680989 | C14: 797342 | D14: 116353 | E14: 0.1708588538 | F14: 494316 | G14: 505864 | H14: 11548 | I14: 0.02336157438 | J14: 802647 | K14: 957228 | L14: 154581 | M14: 0.1925890211
A15: Cape Cod & Islands | B15: 721997 | C15: 845375 | D15: 123378 | E15: =D15/B15 -> 0.1708843666 | F15: 562941 | G15: 486654 | H15: -76287 | I15: -0.1355150895 | J15: 797306 | K15: 944012 | L15: 146706 | M15: 0.1840021272
A16: Central Mass | B16: 914612 | C16: 1301686 | D16: 387074 | E16: 0.423211154 | F16: 810635 | G16: 806223 | H16: -4412 | I16: -0.005442646814 | J16: 1036983 | K16: 1483987 | L16: 447004 | M16: 0.4310620328
A17: Franklin/Hampshire | B17: 319369 | C17: 509146 | D17: 189777 | E17: 0.5942248622 | F17: 331331 | G17: 358967 | H17: 27636 | I17: 0.08340903809 | J17: 610344 | K17: 932684 | L17: 322340 | M17: 0.5281283997
A18: Greater Lowell | B18: 369076 | C18: 445103 | D18: 76027 | E18: 0.2059928037 | F18: 537207 | G18: 532511 | H18: -4696 | I18: -0.008741509325 | J18: 399481 | K18: 490886 | L18: 91405 | M18: 0.2288093802
A19: Gtr New Bedford | B19: 513227 | C19: 938238 | D19: 425011 | E19: 0.8281150446 | F19: 499677 | G19: 475803 | H19: -23874 | I19: -0.04777886515 | J19: 576230 | K19: 1013869 | L19: 437639 | M19: 0.7594866633
A20: Hampden County | B20: 1548378 | C20: 1790018 | D20: 241640 | E20: 0.1560600835 | F20: 748444 | G20: 738871 | H20: -9573 | I20: -0.0127905361 | J20: 1672882 | K20: 2005082 | L20: 332200 | M20: 0.1985794575
A21: Merrimack Valley | B21: 1046336 | C21: 1197615 | D21: 151279 | E21: 0.1445797526 | F21: 632639 | G21: 639750 | H21: 7111 | I21: 0.01124021756 | J21: 1150515 | K21: 1338609 | L21: 188094 | M21: 0.1634867864
A22: Metro North | B22: 1052550 | C22: 1484210 | D22: 431660 | E22: 0.4101087834 | F22: 1043318 | G22: 1102321 | H22: 59003 | I22: 0.0565532273 | J22: 1253817 | K22: 1646357 | L22: 392540 | M22: 0.3130759912
A23: Metro South/West | B23: 726968 | C23: 867790 | D23: 140822 | E23: 0.1937114151 | F23: 1120520 | G23: 1100873 | H23: -19647 | I23: -0.01753382358 | J23: 926853 | K23: 1125262 | L23: 198409 | M23: 0.2140673872
A24: North Central | B24: 428725 | C24: 664452 | D24: 235727 | E24: 0.5498326433 | F24: 466437 | G24: 493954 | H24: 27517 | I24: 0.05899403349 | J24: 421036 | K24: 674025 | L24: 252989 | M24: 0.6008726095
A25: North Shore | B25: 672290 | C25: 895009 | D25: 222719 | E25: 0.3312841185 | F25: 629422 | G25: 803494 | H25: 174072 | I25: 0.2765584933 | J25: 705087 | K25: 1053517 | L25: 348430 | M25: 0.4941659682
A26: South Shore | B26: 704600 | C26: 1015091 | D26: 310491 | E26: 0.4406627874 | F26: 773106 | G26: 771047 | H26: -2059 | I26: -0.002663282913 | J26: 725676 | K26: 1170575 | L26: 444899 | M26: 0.6130821469
A27: TOTAL | B27: 12426799 | C27: 16010892 | D27: =C27-B27 -> 3584093 | E27: 0.2884164297 | F27: 10722688 | G27: 10672234 | H27: =G27-F27 -> -50454 | I27: =H27/F27 -> -0.004705350002 | J27: 14369821 | K27: 18880241 | L27: 4510420 | M27: 0.3138814325
A29: FY 2027 Total allotment for workforce areas assumes Governor's Reserve for statewide activities at 15% for the period 7/1/26 - 6/30/27.
A30: 1. FY 2027 Initial state program allotments published in Training and Employment Guidance Letter (TEGL) 10-25, April 28,2026
A32: SSTA Combo Codes: | B32: WIOA ADULT RETAINED DCSL_FWIA_ADT_RT_EOL24O | F32: WIOA YOUTH RETAINED DCSL_FWIA_YTH_RT_EOL241 | J32: WIOA DISLOCATED WORKER RETAINED DESL_FWIA_DWK_RT_EOL242
A34: MassHire Department of Career Services | K34: Date: | L34: 2026-06-16

Sheet Adult FY27 06162026
A1: ATTACHMENT - 2
A2: COMMONWEALTH OF MASSACHUSETTS
A3: FISCAL YEAR 2027 WIOA TITLE I FORMULA ALLOCATION SHARES FOR ADULT ACTIVITIES WITH HOLD HARMLESS ADJUSTMENT
A5: MASSHIRE WORKFORCE AREAS | B5: A | D5: B | F5: C | H5: D | I5: E | M5: F | N5: G | O5: H | P5: I
B6: 1/3 Weight | D6: 1/3 Weight | F6: 1/3 Weight | H6: Unadjusted | I6: Hold Harmless Level FY27 | M6: Adjusted | O6: Fiscal Year 2027
B7: Disadvantaged Adults* | D7: Unemployed in ASUs | F7: Excess Unemployed in ASUs | H7: Formula | I7: Hold-Harmless Level = 90% of | M7: Formula | N7: Total | O7: Program 90% | P7: Admin 10%
H8: (A+B+C)/3 | I8: Avg Adult Share (Prior 2 Years) | M8: Share** | N8: Allocation | O8: Amount | P8: Amount
B9: Count | C9: Pct | D9: Count | E9: Pct | F9: Count | G9: Pct | H9: Unadj Share | I9: FY26 | J9: FY25 | K9: Average | L9: 90%HH | M9: FY27 | N9: FY27 | O9: FY27 | P9: FY27
A10: Berkshire County | B10: 9020 | C10: =+B10/460507 -> 0.01958710725 | D10: 1939 | E10: =+D10/107796 -> 0.01798768043 | F10: 591 | G10: =+F10/38522 -> 0.01534188256 | H10: =+(C10+E10+G10)/3 -> 0.01763889008 | I10: 0.022 | J10: 0.02461781646 | K10: =+(I10+J10)/2 -> 0.02330890823 | L10: =ROUND(K10*0.9,4) -> 0.021 | M10: 0.021 | N10: =ROUND(M10*$N$26,0) -> 336229 | O10: =ROUND(N10*0.9,0) -> 302606 | P10: =(N10-O10) -> 33623
A11: Boston | B11: 70920 | C11: =+B11/460507 -> 0.1540041737 | D11: 12093 | E11: =+D11/107796 -> 0.1121841256 | F11: 4192 | G11: =+F11/38522 -> 0.1088209335 | H11: 0.1250030776 | I11: 0.1394 | J11: 0.1417355256 | K11: =+(I11+J11)/2 -> 0.1405677628 | L11: =ROUND(K11*0.9,4) -> 0.1265 | M11: 0.1265 | N11: =ROUND(M11*$N$26,0) -> 2025378 | O11: =ROUND(N11*0.9,0) -> 1822840 | P11: =N11-O11 -> 202538
A12: Bristol County | B12: 25014 | C12: 0.05431839255 | D12: 6205 | E12: 0.05756243274 | F12: 2438 | G12: 0.06328851046 | H12: 0.05838977859 | I12: 0.0581 | J12: 0.06461503247 | K12: 0.06135751623 | L12: 0.0552 | M12: 0.0561 | N12: 898211 | O12: =ROUND(N12*0.9,0) -> 808390 | P12: 89821
A13: Brockton | B13: 15530 | C13: 0.03372370018 | D13: 6387 | E13: 0.05925080708 | F13: 2239 | G13: 0.05812263122 | H13: 0.05036571283 | I13: 0.0548 | J13: 0.05369796215 | K13: 0.05424898108 | L13: 0.0488 | M13: 0.0498 | N13: 797342 | O13: =ROUND(N13*0.9,0) -> 717608 | P13: 79734
A14: Cape Cod & Islands | B14: 11780 | C14: 0.02558050149 | D14: 6520 | E14: 0.0604846191 | F14: 2290 | G14: 0.05944655002 | H14: 0.0485038902 | I14: 0.0581 | J14: 0.05933818082 | K14: 0.05871909041 | L14: 0.0528 | M14: 0.0528 | N14: 845375 | O14: 760838 | P14: 84537
A15: Central Mass | B15: 42118 | C15: 0.09146006467 | D15: 10200 | E15: 0.09462317711 | F15: 3088 | G15: 0.08016198536 | H15: 0.08874840905 | I15: 0.0736 | J15: 0.0681 | K15: 0.07085 | L15: 0.0638 | M15: 0.0813 | N15: 1301686 | O15: 1171517 | P15: 130169
A16: Franklin/Hampshire | B16: 16425 | C16: 0.03566721027 | D16: 2680 | E16: 0.02486177595 | F16: 1826 | G16: 0.04740148487 | H16: 0.03597682369 | I16: 0.0257 | J16: 0.0283026791 | K16: 0.02700133955 | L16: 0.0243 | M16: 0.0318 | N16: 509146 | O16: 458231 | P16: 50915
A17: Greater Lowell | B17: 19253 | C17: 0.04180826784 | D17: 1169 | E17: 0.01084455824 | F17: 1167 | G17: 0.03029437724 | H17: 0.02764906777 | I17: 0.0297 | J17: 0.0321 | K17: 0.0309 | L17: 0.0278 | M17: 0.0278 | N17: 445103 | O17: 400593 | P17: 44510
A18: Gtr New Bedford | B18: 18017 | C18: 0.03912426956 | D18: 8702 | E18: 0.08072655757 | F18: 3069 | G18: 0.07966876071 | H18: 0.06650652928 | I18: 0.0413 | J18: 0.04776498718 | K18: 0.04453249359 | L18: 0.0401 | M18: 0.0586 | N18: 938238 | O18: 844414 | P18: 93824
A19: Hampden County | B19: 46011 | C19: 0.09991379067 | D19: 10516 | E19: 0.09755464025 | F19: 4005 | G19: 0.1039665646 | H19: 0.1004783318 | I19: 0.1246 | J19: 0.1238686421 | K19: 0.1242343211 | L19: 0.1118 | M19: 0.1118 | N19: 1790018 | O19: =ROUND(N19*0.9,0) -> 1611016 | P19: 179002
A20: Merrimack Valley | B20: 26402 | C20: 0.05733246183 | D20: 8414 | E20: 0.07805484434 | F20: 3327 | G20: 0.08636623228 | H20: 0.07391784615 | I20: 0.0842 | J20: 0.08198243661 | K20: 0.08309121831 | L20: 0.0748 | M20: 0.0748 | N20: 1197615 | O20: 1077854 | P20: 119761
A21: Metro North | B21: 49290 | C21: 0.1070342036 | D21: 11463 | E21: 0.1063397529 | F21: 3717 | G21: 0.09649031722 | H21: 0.1032880912 | I21: 0.0847 | J21: 0.0655 | K21: 0.0751 | L21: 0.0676 | M21: 0.0927 | N21: 1484210 | O21: 1335789 | P21: 148421
A22: Metro South/West | B22: 36546 | C22: 0.07936035717 | D22: 1287 | E22: 0.01193921852 | F22: 423 | G22: 0.01098073828 | H22: 0.03409343799 | I22: 0.0585 | J22: 0.062 | K22: 0.06025 | L22: 0.0542 | M22: 0.0542 | N22: 867790 | O22: 781011 | P22: 86779
A23: North Central | B23: 19568 | C23: 0.04249229653 | D23: 4768 | E23: 0.04423169691 | F23: 1454 | G23: 0.03774466539 | H23: 0.04148955294 | I23: 0.0345 | J23: 0.03632194897 | K23: 0.03541097449 | L23: 0.0319 | M23: 0.0415 | N23: 664452 | O23: 598007 | P23: 66445
A24: North Shore | B24: 28614 | C24: 0.0621358633 | D24: 6815 | E24: 0.06322126981 | F24: 2062 | G24: 0.05352785421 | H24: 0.05962832911 | I24: 0.0541 | J24: 0.05125478848 | K24: 0.05267739424 | L24: 0.0474 | M24: 0.0559 | N24: 895009 | O24: 805508 | P24: 89501
A25: South Shore | B25: 25999 | C25: 0.05645733941 | D25: 8638 | E25: 0.08013284352 | F25: 2634 | G25: 0.06837651212 | H25: 0.06832223168 | I25: 0.0567 | J25: 0.0588 | K25: 0.05775 | L25: 0.052 | M25: 0.0634 | N25: 1015091 | O25: =ROUND(N25*0.9,0) -> 913582 | P25: 101509
A26: TOTAL | B26: =SUM(B10:B25) -> 460507 | C26: 1 | D26: =SUM(D10:D25) -> 107796 | E26: =SUM(E10:E25) -> 1 | F26: =SUM(F10:F25) -> 38522 | G26: =SUM(G10:G25) -> 1 | H26: 0.9999848429 | I26: 1 | J26: =SUM(J10:J25) -> 1 | K26: =SUM(K10:K25) -> 1 | L26: =SUM(L10:L25) -> 0.9 | M26: =SUM(M10:M25) -> 1 | N26: 16010892 | O26: =ROUND(N26*0.9,0) -> 14409803 | P26: 1601089
N27: =SUM(N10:N26) -> 32021785 | O27: =SUM(O10:O26) -> 28819607 | P27: =SUM(P9:P9) -> 0
A29: Data on ASU unemployed and ASU excess unemployment data are for the 7/1/24 - 6/30/25 benchmark period used for state ASU determination for FY27 | O29: Program Name | P29: WIOA ADT LOCAL
A30: * Economically Disadvantaged Adult source: special tabulations of American Community Survey (ACS) from Census Bureau based on data collected 1/1/2016-12/31/20. ETA Reference TEGL 01-23, 7/31/2023. | O30: Service Dates | P30: 7/1/2026-6/30/2027
A31: **Unadjusted formula shares (D) were adjusted to ensure that each area's formula share was at or above the area's 90% hold-harmless level (E). Totals may not add due to rounding. | O31: SSTA Code RETAINED | P31: DCSL_FWIA_ADT_RT_EOL24O
A32: FY 2027 total allotment for workforce areas assumes Governor's Reserve for statewide activities at 15% for the period 7/1/26 - 6/30/27. | O32: Phase Code | P32: 6502
A33: FY 2027 Initial state program allotments published in Training and Employment Guidance Letter (TEGL) 10-25, April 28,2026 | O33: Appropriation | P33: 70031630
A35: Prepared by: MassHire Department of Career Services | O35: Date | P35: 2026-06-16

Sheet Youth FY27 06162026
A1: ATTACHMENT - 3
A2: COMMONWEALTH OF MASSACHUSETTS
A3: FISCAL YEAR 2027 WIOA TITLE I FORMULA ALLOCATION SHARES FOR YOUTH ACTIVITIES WITH HOLD HARMLESS ADJUSTMENT
A6: MASSHIRE WORKFORCE AREAS | B6: A | D6: B | F6: C | H6: D | I6: E | M6: F | N6: G | O6: H | P6: I
B7: 1/3 Weight | D7: 1/3 Weight | F7: 1/3 Weight | H7: Unadjusted | I7: Hold Harmless Level FY27 | M7: Adjusted | N7: Fiscal Year 2027 | O7: Fiscal Year 2027 | P7: Fiscal Year 2027
B8: Disadvantaged Youth* | D8: Unemployed in ASUs | F8: Excess Unemployed in ASUs | H8: Formula | I8: Hold-Harmless Level = 90% of | M8: Formula | N8: Total | O8: Program 90% | P8: Admin 10%
H9: (A+B+C)/3 | I9: Avg Youth Share (Prior 2 Years) | M9: Share** | N9: Allocation | O9: Amount | P9: Amount
B10: Count | C10: Pct | D10: Count | E10: Pct | F10: Count | G10: Pct | H10: Unadj Share | I10: FY26 | J10: FY25 | K10: Average | L10: 90%HH | M10: FY27 | N10: FY27 | O10: FY27 | P10: FY27
A11: Berkshire County | B11: 2982 | C11: =+B11/122769 -> 0.02428951934 | D11: 1939 | E11: =+D11/107796 -> 0.01798768043 | F11: 591 | G11: =+F11/38522 -> 0.01534188256 | H11: =+(C11+E11+G11)/3 -> 0.01920636078 | I11: 0.0226 | J11: 0.0257650107 | K11: =+(I11+J11)/2 -> 0.02418250535 | L11: =ROUND(K11*0.9,4) -> 0.0218 | M11: 0.0218 | N11: =ROUND(M11*$N$27,0) -> 411589 | O11: =ROUND(N11*0.9,0) -> 370430 | P11: =N11-O11 -> 41159
A12: Boston | B12: 25310 | C12: =+B12/122769 -> 0.2061595354 | D12: 12093 | E12: =+D12/107796 -> 0.1121841256 | F12: 4192 | G12: =+F12/38522 -> 0.1088209335 | H12: 0.1423881982 | I12: 0.1545191874 | J12: 0.1584596869 | K12: 0.1564894372 | L12: =ROUND(K12*0.9,4) -> 0.1408 | M12: 0.1418 | N12: =ROUND(M12*$N$27,0) -> 2677218 | O12: =ROUND(N12*0.9,0) -> 2409496 | P12: =(N12-O12) -> 267722
A13: Bristol County | B13: 4075 | C13: 0.03319241828 | D13: 6205 | E13: 0.05756243274 | F13: 2438 | G13: 0.06328851046 | H13: 0.05134778716 | I13: 0.0519 | J13: 0.05823556429 | K13: 0.05506778214 | L13: 0.0496 | M13: 0.0506 | N13: =ROUND(M13*$N$27,0) -> 955340 | O13: =ROUND(N13*0.9,0) -> 859806 | P13: =N13-O13 -> 95534
A14: Brockton | B14: 4455 | C14: 0.03628766219 | D14: 6387 | E14: 0.05925080708 | F14: 2239 | G14: 0.05812263122 | H14: 0.05122036683 | I14: 0.05585644042 | J14: 0.05477112203 | K14: 0.05531378122 | L14: 0.0498 | M14: 0.0507 | N14: 957228 | O14: 861505 | P14: 95723
A15: Cape Cod & Islands | B15: 1367 | C15: 0.01113473271 | D15: 6520 | E15: 0.0604846191 | F15: 2290 | G15: 0.05944655002 | H15: 0.04368863394 | I15: 0.05548473377 | J15: 0.05564583886 | K15: 0.05556528632 | L15: 0.05 | M15: 0.05 | N15: =ROUND(M15*$N$27,0) -> 944012 | O15: 849611 | P15: =(N15-O15) -> 94401
A16: Central Mass | B16: 11241 | C16: 0.09156220218 | D16: 10200 | E16: 0.09462317711 | F16: 3088 | G16: 0.08016198536 | H16: 0.08878245489 | I16: 0.07216394149 | J16: 0.067 | K16: 0.06958197075 | L16: 0.0626 | M16: 0.0786 | N16: 1483987 | O16: 1335588 | P16: 148399
A17: Franklin/Hampshire | B17: 11495 | C17: 0.09363112838 | D17: 2680 | E17: 0.02486177595 | F17: 1826 | G17: =+F17/38522 -> 0.04740148487 | H17: 0.05529812973 | I17: 0.04247398656 | J17: 0.04685306537 | K17: 0.04466352597 | L17: 0.0402 | M17: 0.0494 | N17: 932684 | O17: 839416 | P17: 93268
A18: Greater Lowell | B18: 4559 | C18: 0.03713478158 | D18: 1169 | E18: 0.01084455824 | F18: 1167 | G18: 0.03029437724 | H18: 0.02609123902 | I18: 0.0278 | J18: 0.0298 | K18: 0.0288 | L18: 0.0259 | M18: 0.026 | N18: 490886 | O18: 441797 | P18: 49089
A19: Gtr New Bedford | B19: 3670 | C19: 0.0298935399 | D19: 8702 | E19: 0.08072655757 | F19: 3069 | G19: 0.07966876071 | H19: 0.06342961939 | I19: 0.0401 | J19: 0.04565932825 | K19: 0.04287966412 | L19: 0.0386 | M19: 0.0537 | N19: 1013869 | O19: 912482 | P19: 101387
A20: Hampden County | B20: 9991 | C20: 0.08138047879 | D20: 10516 | E20: 0.09755464025 | F20: 4005 | G20: 0.1039665646 | H20: 0.0943005612 | I20: 0.116416363 | J20: 0.1196578646 | K20: 0.1180371138 | L20: 0.1062 | M20: 0.1062 | N20: =ROUND(M20*$N$27,0) -> 2005082 | O20: 1804574 | P20: =(N20-O20) -> 200508
A21: Merrimack Valley | B21: 5098 | C21: 0.04152514071 | D21: 8414 | E21: 0.07805484434 | F21: 3327 | G21: 0.08636623228 | H21: 0.06864873911 | I21: 0.08006465274 | J21: 0.07752319359 | K21: 0.07879392317 | L21: 0.0709 | M21: 0.0709 | N21: 1338609 | O21: 1204748 | P21: =(N21-O21) -> 133861
A22: Metro North | B22: 11839 | C22: 0.09643313866 | D22: 11463 | E22: 0.1063397529 | F22: 3717 | G22: 0.09649031722 | H22: 0.09975440292 | I22: 0.08725346218 | J22: 0.0625 | K22: 0.07487673109 | L22: 0.0674 | M22: 0.0872 | N22: 1646357 | O22: 1481721 | P22: 164636
A23: Metro South/West | B23: 12789 | C23: 0.1041712484 | D23: 1287 | E23: 0.01193921852 | F23: 423 | G23: 0.01098073828 | H23: 0.04236373508 | I23: 0.0645 | J23: 0.0679 | K23: 0.0662 | L23: 0.0596 | M23: 0.0596 | N23: 1125262 | O23: 1012736 | P23: 112526
A24: North Central | B24: 3075 | C24: 0.02504703956 | D24: 4768 | E24: 0.04423169691 | F24: 1454 | G24: 0.03774466539 | H24: 0.03567446729 | I24: 0.0293 | J24: 0.03072932541 | K24: 0.0300146627 | L24: 0.027 | M24: 0.0357 | N24: 674025 | O24: 606623 | P24: 67402
A25: North Shore | B25: 6234 | C25: 0.05077829094 | D25: 6815 | E25: 0.06322126981 | F25: 2062 | G25: 0.05352785421 | H25: 0.05584247165 | I25: 0.04906723243 | J25: 0.0479 | K25: 0.04848361622 | L25: 0.0436 | M25: 0.0558 | N25: 1053517 | O25: 948165 | P25: 105352
A26: South Shore | B26: 4589 | C26: 0.03737914294 | D26: 8638 | E26: 0.08013284352 | F26: 2634 | G26: 0.06837651212 | H26: 0.06196283286 | I26: 0.0505 | J26: 0.0516 | K26: 0.05105 | L26: 0.0459 | M26: 0.062 | N26: =ROUND(M26*$N$27,0) -> 1170575 | O26: 1053518 | P26: =(N26-O26) -> 117057
A27: TOTAL | B27: =SUM(B11:B26) -> 122769 | C27: 1 | D27: =SUM(D11:D26) -> 107796 | E27: 1 | F27: =SUM(F11:F26) -> 38522 | G27: 1 | H27: 1 | I27: 1 | J27: 1 | K27: =SUM(K11:K26) -> 1 | L27: =SUM(L11:L26) -> 0.8999 | M27: 1 | N27: 18880241 | O27: =SUM(O11:O26) -> 16992216 | P27: =SUM(P11:P26) -> 1888024
M28: =SUM(M11:M27) -> 2 | N28: =SUM(N11:N26) -> 18880240 | O28: =SUM(O11:O27) -> 33984432 | P28: =SUM(P11:P27) -> 3776048
A30: Data on ASU unemployed and ASU excess unemployment data are for the 7/1/24 - 6/30/25 benchmark period used for state ASU determination for FY27 | O30: Program Name | P30: WIOA YOUTH
A31: * Economically Disadvantaged Adult source: special tabulations of American Community Survey (ACS) from Census Bureau on data collected 1/1/2016-12/31/20. ETA Reference TEGL 01-23, 7/31/2023. | O31: Service Dates | P31: 4/1/2026-6/30/2027
A32: **Unadjusted formula shares (D) were adjusted to ensure that each area's formula share was at or above the area's 90% hold-harmless level (E). Totals may not add due to rounding. | O32: SSTA Code RETAINED | P32: DCSL_FWIA_YTH_RT_EOL241
A33: FY 2027 total allotment for workforce areas assumes Governor's Reserve for statewide activities at 15% for the period 7/1/26 - 6/30/27. | O33: Phase Code | P33: 6501
A34: FY 2027 Initial state program allotments published in Training and Employment Guidance Letter (TEGL) 10-25, April 28,2026 | O34: Appropriation | P34: 70031631
A36: Prepared by: MassHire Department of Career Services | O36: Date: | P36: 2026-06-16

Sheet Dis Wrk FY27 0662026
A1: ATTACHMENT - 4 | P1: ATTACHMENT - 4
A2: COMMONWEALTH OF MASSACHUSETTS | P2: COMMONWEALTH OF MASSACHUSETTS
A3: FISCAL YEAR 2027 WIOA TITLE I FORMULA ALLOCATION SHARES FOR DISLOCATED WORKERS WITH HOLD HARMLESS ADJUSTMENT | P3: FISCAL YEAR 2027 WIOA TITLE I FORMULA ALLOCATION SHARES FOR DISLOCATED WORKERS WITH HOLD HARMLESS ADJUSTMENT
A6: MASSHIRE WORKFORCE AREAS | B6: A | D6: B | F6: C | H6: C | J6: D | L6: E | N6: F | O6: G | P6: H | Q6: I | R6: J | V6: K | W6: L | X6: M | Y6: N
B7: 27.78% Weight | D7: 27.78% Weight | F7: 0% Weight | H7: 11.10% Weight | J7: 16.67% Weight | L7: 16.67% Weight | N7: Weighted | O7: Calculated | P7: Adjusted | Q7: Fiscal Year 2027 | R7: Hold Harmless Level Fiscal Year 2027 | V7: Adjusted | W7: Fiscal Year 2027 | X7: Fiscal Year 2027 | Y7: Fiscal Year 2027
B8: CY25 Average Monthly UI Claimants | D8: CY25 Annual Avg Unemp. Rate | F8: CY23 Claimants in Mass Layoffs | H8: 3-Year Job Loss in Declining Indus. | J8: CY25 Avg Lng Trm UI Claims (26+Wks) | L8: CY25 Annual Total of UI Exhaustees | N8: Formula Share | O8: Hold | P8: Formula | Q8: Total | R8: Hold-Harmless Level = 90% of | V8: Formula | W8: Total Allocation | X8: Program 90% Amount | Y8: Admin. 10% Amount
O9: Harmless | P9: Share* | Q9: Allocation | R9: Avg Dislocated Worker Share (Prior 2 Years) | V9: Share | W9: Allocation | X9: Total | Y9: Amount
B10: Count | C10: Pct | D10: Count | E10: Pct | F10: Count | G10: Pct | H10: Count | I10: Pct | J10: Count | K10: Pct | L10: Count | M10: Pct | N10: FY27 | O10: FY27 | P10: FY27 | Q10: FY27 | R10: FY26 | S10: FY25 | T10: Average | U10: 90% HH | V10: FY27 | W10: FY27 | X10: FY27 | Y10: FY27
A11: Berkshire County | B11: 889 | C11: =+B11/B27 -> 0.01482482032 | D11: 4.4 | E11: =+D11/$D$27 -> 0.05882352941 | H11: 1661 | I11: =+H11/H27 -> 0.01199650433 | J11: 542 | K11: =+J11/J27 -> 0.01575535595 | L11: 598 | M11: =+L11/L27 -> 0.01634013717 | N11: =ROUND(C11*0.2778+E11*0.2778+I11*0.1111+K11*0.1667+M11*0.1667,4) -> 0.0271 | O11: 0.0258 | P11: 0.0271 | Q11: 289218 | R11: 0.0279 | S11: 0.0295 | T11: =+(R11+S11)/2 -> 0.0287 | U11: =ROUND(T11*0.9,4) -> 0.0258 | V11: 0.0271 | W11: =ROUND(V11*$W$27,0) -> 289218 | X11: =ROUND(W11*0.9,0) -> 260296 | Y11: =(W11-X11) -> 28922
A12: Boston | B12: 6000 | C12: =+B12/B27 -> 0.1000550303 | D12: 4.4 | E12: =+D12/$D$27 -> 0.05882352941 | F12: Data not available | H12: 23542 | I12: =H12/H27 -> 0.1700311288 | J12: 1118 | K12: =+J12/J27 -> 0.03249905526 | L12: 1019 | M12: =+L12/L27 -> 0.02784381233 | N12: =ROUND(C12*0.2778+E12*0.2778+I12*0.1111+K12*0.1667+M12*0.1667,4) -> 0.0731 | O12: 0.0863 | P12: 0.0863 | Q12: 921014 | R12: 0.1001 | S12: 0.0917 | T12: =+(R12+S12)/2 -> 0.0959 | U12: =ROUND(T12*0.9,4) -> 0.0863 | V12: 0.0863 | W12: 921014 | X12: =ROUND(W12*0.9,0) -> 828913 | Y12: =(W12-X12) -> 92101
A13: Bristol County | B13: 3663 | C13: =+B13/B27 -> 0.06108359598 | D13: 4.9 | E13: =+D13/$D$27 -> 0.06550802139 | F13: for this factor. | H13: 4447 | I13: =H13/H27 -> 0.03211827499 | J13: 1855 | K13: =+J13/J27 -> 0.05392285108 | L13: 1948 | M13: =+L13/L27 -> 0.0532284067 | N13: 0.0566 | O13: 0.0605 | P13: 0.0605 | Q13: 645670 | R13: 0.0653 | S13: 0.0692 | T13: 0.06725 | U13: 0.0605 | V13: 0.0605 | W13: 645670 | X13: =ROUND(W13*0.9,0) -> 581103 | Y13: =W13-X13 -> 64567
A14: Brockton | B14: 2541 | C14: =+B14/B27 -> 0.04237330532 | D14: 4.9 | E14: =+D14/$D$27 -> 0.06550802139 | H14: 1738 | I14: =H14/H27 -> 0.01255263367 | J14: 1650 | K14: =+J14/J27 -> 0.04796372198 | L14: 1766 | M14: =+L14/L27 -> 0.04825532147 | N14: 0.0474 | O14: 0.0426 | P14: 0.0474 | Q14: 505864 | R14: 0.0461 | S14: 0.0485 | T14: 0.0473 | U14: 0.0426 | V14: 0.0474 | W14: 505864 | X14: 455278 | Y14: 50586
A15: Cape Cod & Islands | B15: 2888 | C15: =+B15/B27 -> 0.04815982124 | D15: 5.3 | E15: 0.07085561497 | F15: Factor weight | H15: 1351 | I15: =H15/H27 -> 0.009757542053 | J15: 662 | K15: =+J15/J27 -> 0.01924362664 | L15: 1009 | M15: =+L15/L27 -> 0.02757056589 | N15: 0.042 | O15: 0.0456 | P15: 0.0456 | Q15: 486654 | R15: 0.0525 | S15: 0.0489 | T15: 0.0507 | U15: 0.0456 | V15: 0.0456 | W15: 486654 | X15: 437989 | Y15: 48665
A16: Central Mass | B16: 5264 | C16: =+B16/B27 -> 0.08778161322 | D16: 4.5 | E16: 0.06016042781 | F16: (10%) was | H16: 5890 | I16: =H16/H27 -> 0.04254028326 | J16: 3218 | K16: =+J16/J27 -> 0.09354379233 | L16: 3356 | M16: =+L16/L27 -> 0.09170150559 | N16: 0.0767 | O16: 0.0703 | P16: 0.07554397906 | Q16: 806223 | R16: 0.0756 | S16: 0.0806 | T16: 0.0781 | U16: 0.0703 | V16: 0.07554397906 | W16: 806223 | X16: 725601 | Y16: 80622
A17: Franklin/Hampshire | B17: 1562 | C17: =+B17/B27 -> 0.02604765955 | D17: 4.3 | E17: 0.05748663102 | F17: apportioned | H17: 2123 | I17: =H17/H27 -> 0.01533328037 | J17: 1012 | K17: =+J17/J27 -> 0.02941774948 | L17: 1115 | M17: =+L17/L27 -> 0.03046697817 | N17: 0.0349 | O17: 0.0279 | P17: 0.03363560209 | Q17: 358967 | R17: 0.0309 | S17: 0.0311 | T17: 0.031 | U17: 0.0279 | V17: 0.03363560209 | W17: 358967 | X17: =ROUND(W17*0.9,0) -> 323070 | Y17: 35897
A18: Greater Lowell | B18: 2657 | C18: =+B18/B27 -> 0.04430770257 | D18: 4.6 | E18: 0.0614973262 | F18: across the five | H18: 5769 | I18: =H18/H27 -> 0.04166636573 | J18: 1746 | K18: =+J18/J27 -> 0.05075433854 | L18: 1826 | M18: =+L18/L27 -> 0.04989480012 | N18: 0.0508 | O18: 0.0458 | P18: 0.04989685864 | Q18: 532511 | R18: 0.0501 | S18: 0.0516 | T18: 0.05085 | U18: 0.0458 | V18: 0.04989685864 | W18: 532511 | X18: 479260 | Y18: 53251
A19: Gtr New Bedford | B19: 2364 | C19: =+B19/B27 -> 0.03942168193 | D19: 5.5 | E19: 0.07352941176 | F19: remaining factors. | H19: 1867 | I19: =H19/H27 -> 0.01348433088 | J19: 1197 | K19: =+J19/J27 -> 0.03479550013 | L19: 1347 | M19: =+L19/L27 -> 0.0368062956 | N19: 0.0448 | O19: 0.0436 | P19: 0.04458324607 | Q19: 475803 | R19: 0.0466 | S19: 0.0502 | T19: 0.0484 | U19: 0.0436 | V19: 0.04458324607 | W19: 475803 | X19: 428223 | Y19: 47580
A20: Hampden County | B20: 4129 | C20: =+B20/B27 -> 0.06885453666 | D20: 5.5 | E20: 0.07352941176 | H20: 6492 | I20: =H20/H27 -> 0.04688820356 | J20: 2570 | K20: =+J20/J27 -> 0.07470713061 | L20: 2827 | M20: =+L20/L27 -> 0.07724676886 | N20: 0.0701 | O20: 0.0653 | P20: 0.06923298429 | Q20: 738871 | R20: 0.0698 | S20: 0.0754 | T20: 0.0726 | U20: 0.0653 | V20: 0.06923298429 | W20: 738871 | X20: 664984 | Y20: 73887
A21: Merrimack Valley | B21: 3369 | C21: =+B21/B27 -> 0.05618089949 | D21: 4.8 | E21: 0.06417112299 | H21: 5769 | I21: =H21/H27 -> 0.04166636573 | J21: 2366 | K21: =+J21/J27 -> 0.06877707043 | L21: 2592 | M21: =+L21/L27 -> 0.0708254775 | N21: 0.0613 | O21: 0.0538 | P21: 0.05994528796 | Q21: 639750 | R21: 0.059 | S21: 0.0606 | T21: 0.0598 | U21: 0.0538 | V21: 0.05994528796 | W21: 639750 | X21: 575775 | Y21: 63975
A22: Metro North | B22: 6651 | C22: =+B22/B27 -> 0.1109110011 | D22: 4 | E22: 0.05347593583 | H22: 24392 | I22: =H22/H27 -> 0.1761702189 | J22: 4423 | K22: =+J22/J27 -> 0.1285718438 | L22: 4486 | M22: =+L22/L27 -> 0.1225783534 | N22: 0.1071 | O22: 0.086 | P22: 0.1032887435 | Q22: 1102321 | R22: 0.0973 | S22: 0.0937 | T22: 0.0955 | U22: 0.086 | V22: 0.1032887435 | W22: =ROUND(V22*$W$27,0)-1 -> 1102321 | X22: =ROUND(W22*0.9,0) -> 992089 | Y22: =(W22-X22) -> 110232
A23: Metro South/West | B23: 6717 | C23: =+B23/B27 -> 0.1120116064 | D23: 4 | E23: 0.05347593583 | H23: 20158 | I23: =H23/H27 -> 0.1455903277 | J23: 4551 | K23: =+J23/J27 -> 0.1322926659 | L23: 4729 | M23: =+L23/L27 -> 0.1292182419 | N23: 0.1057 | O23: 0.0916 | P23: 0.1031531414 | Q23: 1100873 | R23: 0.1045 | S23: 0.0991 | T23: 0.1018 | U23: 0.0916 | V23: 0.1031531414 | W23: =ROUND(V23*$W$27,0)-1 -> 1100873 | X23: =ROUND(W23*0.9,0) -> 990786 | Y23: =(W23-X23) -> 110087
A24: North Central | B24: 2551 | C24: =+B24/B27 -> 0.0425400637 | D24: 4.9 | E24: 0.06550802139 | H24: 2624 | I24: =H24/H27 -> 0.01895173231 | J24: 1619 | K24: =+J24/J27 -> 0.04706258539 | L24: 1772 | M24: =+L24/L27 -> 0.04841926934 | N24: 0.048 | O24: 0.0385 | P24: 0.04628403141 | Q24: 493954 | R24: 0.0435 | S24: 0.0421 | T24: 0.0428 | U24: 0.0385 | V24: 0.04628403141 | W24: 493954 | X24: 444559 | Y24: 49395
A25: North Shore | B25: 3774 | C25: =+B25/B27 -> 0.06293461404 | D25: 4.5 | E25: 0.06016042781 | H25: 24392 | I25: =H25/H27 -> 0.1761702189 | J25: 2740 | K25: =+J25/J27 -> 0.07964884742 | L25: 2925 | M25: =+L25/L27 -> 0.07992458398 | N25: 0.0804 | O25: 0.0521 | P25: 0.0752882199 | Q25: 803494 | R25: 0.0587 | S25: 0.057 | T25: 0.05785 | U25: 0.0521 | V25: 0.0752882199 | W25: 803494 | X25: 723145 | Y25: 80349
A26: South Shore | B26: 4948 | C26: =+B26/B27 -> 0.08251204829 | D26: 4.3 | E26: 0.05748663102 | H26: 6242 | I26: =H26/H27 -> 0.04508258882 | J26: 3132 | K26: =+J26/J27 -> 0.091043865 | L26: 3282 | M26: =+L26/L27 -> 0.08967948192 | N26: 0.074 | O26: 0.0643 | P26: 0.07224790576 | Q26: 771047 | R26: 0.0721 | S26: 0.0708 | T26: 0.07145 | U26: 0.0643 | V26: 0.07224790576 | W26: 771047 | X26: 693942 | Y26: 77105
A27: TOTAL | B27: =SUM(B11:B26) -> 59967 | C27: =SUM(C11:C26) -> 1 | D27: =SUM(D11:D26) -> 74.8 | E27: =SUM(E11:E26) -> 1 | H27: =SUM(H11:H26) -> 138457 | I27: =SUM(I11:I26) -> 1 | J27: =SUM(J11:J26) -> 34401 | K27: 1 | L27: 36597 | M27: 1 | N27: 1 | O27: 0.9 | P27: 1 | Q27: 10672234 | R27: 1 | S27: 1 | T27: =SUM(T11:T26) -> 1 | U27: =SUM(U11:U26) -> 0.9 | V27: 1 | W27: 10672234 | X27: =SUM(X11:X26) -> 9605013 | Y27: =SUM(Y11:Y26) -> 1067221
B29: Calculation of FY 2027 Dislocated Worker Local Program Allocations with Factor Weights Approved June 2026 | W29: Program Name | X29: WIOA DWK LOCAL
B30: **Unadjusted formula shares (D) were adjusted to ensure that each area's formula share was at or above the area's 90% hold-harmless level (E). Totals may not add due to rounding. | W30: Service Dates | X30: 7/1/2026-6/30/2027
B31: FY 2027 total allotment for workforce areas assumes Governor's Reserve for statewide activities at 15% for the period 7/1/25 - 6/30/26. | W31: SSTA Code RETAINED | X31: DCSL_FWIA_YTH_RT_EOL241
B32: FY 2027 Initial state program allotments published in Training and Employment Guidance Letter (TEGL) 10-25, April 28,2026 | W32: Phase Code | X32: 6503
W33: Appropriation | X33: 70031778
B35: Prepared by: MassHire Department of Career Services | X35: Date: | Y35: 2026-06-16

Sheet Awards FY27 Adult 06162026
A1: ATTACHMENT - 5
A2: COMMONWEALTH OF MASSACHUSETTS
A3: FISCAL YEAR 2027 WIOA TITLE I FORMULA ALLOCATIONS FOR ADULT ACTIVITIES
A4: FUNDING AVAILABILITY
A6: MASSHIRE WORKFORCE AREAS | B6: Adjusted | C6: Fiscal Year 2027 Adult
B7: Formula | C7: Total | D7: Program 90% | E7: Admin 10% | F7: Funds Available as of July 1, 2026 | I7: Funds Available as of October 1, 2026
B8: Share** | C8: Allocation | D8: Amount | E8: Amount | F8: DOL Notice of Award (NOA) | I8: DOL Notice of Award (NOA)
B9: FY27 | C9: FY27 | D9: FY27 | E9: FY27 | F9: Total | G9: 90% Program | H9: 10% Admin | I9: Total | J9: 90% Program | K9: 10% Admin
A10: Berkshire County | B10: 0.021 | C10: 336229 | D10: =ROUND(C10*0.9,0) -> 302606 | E10: =(C10-D10) -> 33623 | F10: =ROUND(B10*$F$26,0) -> 62850 | G10: =ROUND(F10*0.9,0) -> 56565 | H10: =F10-G10 -> 6285 | I10: =C10-F10 -> 273379 | J10: =D10-G10 -> 246041 | K10: =E10-H10 -> 27338
A11: Boston | B11: 0.1265 | C11: 2025378 | D11: =ROUND(C11*0.9,0) -> 1822840 | E11: =C11-D11 -> 202538 | F11: =ROUND(B11*$F$26,0) -> 378594 | G11: =ROUND(F11*0.9,0) -> 340735 | H11: =F11-G11 -> 37859 | I11: =C11-F11 -> 1646784 | J11: 1482105 | K11: 164679
A12: Bristol County | B12: 0.0561 | C12: 898211 | D12: =ROUND(C12*0.9,0) -> 808390 | E12: 89821 | F12: =ROUND(B12*$F$26,0) -> 167898 | G12: 151108 | H12: 16790 | I12: 730313 | J12: 657282 | K12: 73031
A13: Brockton | B13: 0.0498 | C13: 797342 | D13: =ROUND(C13*0.9,0) -> 717608 | E13: 79734 | F13: 149043 | G13: 134139 | H13: 14904 | I13: 648299 | J13: 583469 | K13: 64830
A14: Cape Cod & Islands | B14: 0.0528 | C14: 845375 | D14: 760838 | E14: 84537 | F14: 158022 | G14: 142220 | H14: 15802 | I14: 687353 | J14: 618618 | K14: 68735
A15: Central Mass | B15: 0.0813 | C15: 1301686 | D15: 1171517 | E15: 130169 | F15: 243317 | G15: 218985 | H15: 24332 | I15: 1058369 | J15: 952532 | K15: 105837
A16: Franklin/Hampshire | B16: 0.0318 | C16: 509146 | D16: 458231 | E16: 50915 | F16: =ROUND(B16*$F$26,0) -> 95172 | G16: =ROUND(F16*0.9,0) -> 85655 | H16: 9517 | I16: 413974 | J16: 372576 | K16: 41398
A17: Greater Lowell | B17: 0.0278 | C17: 445103 | D17: 400593 | E17: 44510 | F17: 83201 | G17: 74881 | H17: 8320 | I17: 361902 | J17: 325712 | K17: 36190
A18: Gtr New Bedford | B18: 0.0586 | C18: 938238 | D18: 844414 | E18: 93824 | F18: 175380 | G18: 157842 | H18: 17538 | I18: 762858 | J18: 686572 | K18: 76286
A19: Hampden County | B19: 0.1118 | C19: 1790018 | D19: =ROUND(C19*0.9,0) -> 1611016 | E19: 179002 | F19: =ROUND(B19*$F$26,0) -> 334599 | G19: 301139 | H19: 33460 | I19: =C19-F19 -> 1455419 | J19: 1309877 | K19: 145542
A20: Merrimack Valley | B20: 0.0748 | C20: 1197615 | D20: 1077854 | E20: 119761 | F20: 223864 | G20: 201478 | H20: 22386 | I20: 973751 | J20: 876376 | K20: 97375
A21: Metro North | B21: 0.0927 | C21: 1484210 | D21: 1335789 | E21: 148421 | F21: 277436 | G21: 249692 | H21: 27744 | I21: 1206774 | J21: 1086097 | K21: 120677
A22: Metro South/West | B22: 0.0542 | C22: 867790 | D22: 781011 | E22: 86779 | F22: 162212 | G22: 145991 | H22: 16221 | I22: 705578 | J22: 635020 | K22: 70558
A23: North Central | B23: 0.0415 | C23: 664452 | D23: 598007 | E23: 66445 | F23: 124203 | G23: 111783 | H23: 12420 | I23: 540249 | J23: 486224 | K23: 54025
A24: North Shore | B24: 0.0559 | C24: 895009 | D24: 805508 | E24: 89501 | F24: 167299 | G24: 150569 | H24: 16730 | I24: 727710 | J24: 654939 | K24: 72771
A25: South Shore | B25: 0.0634 | C25: 1015091 | D25: =ROUND(C25*0.9,0) -> 913582 | E25: 101509 | F25: 189746 | G25: 170771 | H25: 18975 | I25: 825345 | J25: 742811 | K25: 82534
A26: TOTAL | B26: =SUM(B10:B25) -> 1 | C26: =SUM(C10:C25) -> 16010893 | D26: =SUM(D10:D25) -> 14409804 | E26: =SUM(E10:E25) -> 1601089 | F26: 2992834 | G26: =SUM(G10:G25) -> 2693553 | H26: =SUM(H10:H25) -> 299283 | I26: 13018058 | J26: 11716251 | K26: 1301806
A27: Source:
A28: 1. FY 2027 Initial state program allotments published in Training and Employment Guidance Letter (TEGL) 10-25, April 28,2026
A29: USDOL will issue allotments in two Notices of Award (NOA) one for July 1, 2026 (base allotment) and one for October 1, 2026 (advance allotment). Totals may not add due to rounding.
A30: Totals may not add due to rounding.
A32: Prepared by: MassHire Department of Career Services | J32: Date: | K32: 2026-06-16

Sheet Awards FY27 Youth 06162026
A1: ATTACHMENT - 6
A2: COMMONWEALTH OF MASSACHUSETTS
A3: FISCAL YEAR 2027 WIOA TITLE I FORMULA ALLOCATIONS FOR YOUTH ACTIVITIES
A4: FUNDING AVAILABILITY
A6: MASSHIRE WORKFORCE AREAS | B6: Adjusted | C6: Fiscal Year 2027 Youth
B7: Formula | C7: Total | D7: Program 90% | E7: Admin 10% | F7: Funds Available as of April 1, 2026 | I7: Funds Available as of October 1, 2026
B8: Share | C8: Allocation | D8: Amount | E8: Amount | F8: DOL Notice of Award (NOA) | I8: DOL Notice of Award (NOA)
B9: FY257 | C9: FY27 | D9: FY27 | E9: FY27 | F9: Total | G9: 90% Program | H9: 10% Admin | I9: Total | J9: 90% Program | K9: 10% Admin
A10: Berkshire County | B10: 0.0218 | C10: 411589 | D10: 370430 | E10: 41159 | F10: 411589 | G10: 370430 | H10: 41159
A11: Boston | B11: 0.1418 | C11: 2677218 | D11: 2409496 | E11: 267722 | F11: 2677218 | G11: 2409496 | H11: 267722
A12: Bristol County | B12: 0.0506 | C12: 955340 | D12: 859806 | E12: 95534 | F12: 955340 | G12: 859806 | H12: 95534
A13: Brockton | B13: 0.0507 | C13: 957228 | D13: 861505 | E13: 95723 | F13: 957228 | G13: 861505 | H13: 95723
A14: Cape Cod & Islands | B14: 0.05 | C14: 944012 | D14: 849611 | E14: 94401 | F14: 944012 | G14: 849611 | H14: 94401
A15: Central Mass | B15: 0.0786 | C15: 1483987 | D15: 1335588 | E15: 148399 | F15: 1483987 | G15: 1335588 | H15: 148399
A16: Franklin/Hampshire | B16: 0.0494 | C16: 932684 | D16: 839416 | E16: 93268 | F16: 932684 | G16: 839416 | H16: 93268
A17: Greater Lowell | B17: 0.026 | C17: 490886 | D17: 441797 | E17: 49089 | F17: 490886 | G17: 441797 | H17: 49089
A18: Gtr New Bedford | B18: 0.0537 | C18: 1013869 | D18: 912482 | E18: 101387 | F18: 1013869 | G18: 912482 | H18: 101387
A19: Hampden County | B19: 0.1062 | C19: 2005082 | D19: 1804574 | E19: 200508 | F19: 2005082 | G19: 1804574 | H19: 200508
A20: Merrimack Valley | B20: 0.0709 | C20: 1338609 | D20: 1204748 | E20: 133861 | F20: 1338609 | G20: 1204748 | H20: 133861
A21: Metro North | B21: 0.0872 | C21: 1646357 | D21: 1481721 | E21: 164636 | F21: 1646357 | G21: 1481721 | H21: 164636
A22: Metro South/West | B22: 0.0596 | C22: 1125262 | D22: 1012736 | E22: 112526 | F22: 1125262 | G22: 1012736 | H22: 112526
A23: North Central | B23: 0.0357 | C23: 674025 | D23: 606623 | E23: 67402 | F23: 674025 | G23: 606623 | H23: 67402
A24: North Shore | B24: 0.0558 | C24: 1053517 | D24: 948165 | E24: 105352 | F24: 1053517 | G24: 948165 | H24: 105352
A25: South Shore | B25: 0.062 | C25: 1170575 | D25: 1053518 | E25: 117057 | F25: 1170575 | G25: 1053518 | H25: 117057
A26: TOTAL | B26: 1 | C26: =SUM(C10:C25) -> 18880240 | D26: =SUM(D10:D25) -> 16992216 | E26: 1888024 | F26: 18880240 | G26: 16992216 | H26: 1888024
A27: Source:
A29: 1. FY 2027 Initial state program allotments published in Training and Employment Guidance Letter (TEGL) 10-25, April 28,2026
A30: USDOL will issue allotments in two Notices of Award (NOA) one for July 1, 2026 (base allotment) and one for October 1, 2026 (advance allotment). Totals may not add due to rounding.
A31: Totals may not add due to rounding.
A33: Prepared by: MassHire Department of Career Services | I33: Date: | J33: 2026-06-16

Sheet Awards FY27 DWrk 06162026
A1: ATTACHMENT - 7
A2: COMMONWEALTH OF MASSACHUSETTS
A3: FISCAL YEAR 2027 WIOA TITLE I FORMULA ALLOCATIONS FOR DISCLOCATED WORKER PROGRAMS
A4: FUNDING AVAILABILITY
A6: MASSHIRE WORKFORCE AREAS | B6: Adjusted | C6: Fiscal Year 2027
B7: Formula | C7: Total | D7: Program 90% | E7: Admin 10% | F7: Funds Available as of July 1, 2026 | I7: Funds Available as of October 1, 2026
B8: Share | C8: Allocation | D8: Amount | E8: Amount | F8: DOL Notice of Award (NOA) | I8: DOL Notice of Award (NOA)
B9: FY27 | C9: FY27 | D9: FY27 | E9: FY27 | F9: Total | G9: 90% Program | H9: 10% Admin | I9: Total | J9: 90% Program | K9: 10% Admin
A10: Berkshire County | B10: 0.0271 | C10: 289218 | D10: 260296 | E10: 28922 | F10: =ROUND(B10*$F$26,0) -> 62196 | G10: =ROUND(F10*0.9,0) -> 55976 | H10: =F10-G10 -> 6220 | I10: =C10-F10 -> 227022 | J10: =D10-G10 -> 204320 | K10: =E10-H10 -> 22702
A11: Boston | B11: 0.0863 | C11: 921014 | D11: 828913 | E11: 92101 | F11: =ROUND(B11*$F$26,0) -> 198062 | G11: 178256 | H11: =F11-G11 -> 19806 | I11: =C11-F11 -> 722952 | J11: 650657 | K11: 72295
A12: Bristol County | B12: 0.0605 | C12: 645670 | D12: 581103 | E12: 64567 | F12: 138850 | G12: 124965 | H12: 13885 | I12: 506820 | J12: 456138 | K12: 50682
A13: Brockton | B13: 0.0474 | C13: 505864 | D13: 455278 | E13: 50586 | F13: 108785 | G13: 97907 | H13: 10878 | I13: 397079 | J13: 357371 | K13: 39708
A14: Cape Cod & Islands | B14: 0.0456 | C14: 486654 | D14: 437989 | E14: 48665 | F14: 104654 | G14: 94189 | H14: 10465 | I14: 382000 | J14: 343800 | K14: 38200
A15: Central Mass | B15: 0.07554397906 | C15: 806223 | D15: 725601 | E15: 80622 | F15: 173377 | G15: 156039 | H15: 17338 | I15: 632846 | J15: 569562 | K15: 63284
A16: Franklin/Hampshire | B16: 0.03363560209 | C16: 358967 | D16: 323070 | E16: 35897 | F16: 77195 | G16: 69476 | H16: 7719 | I16: 281772 | J16: 253594 | K16: 28178
A17: Greater Lowell | B17: 0.04989685864 | C17: 532511 | D17: 479260 | E17: 53251 | F17: 114516 | G17: 103064 | H17: 11452 | I17: 417995 | J17: 376196 | K17: 41799
A18: Gtr New Bedford | B18: 0.04458324607 | C18: 475803 | D18: 428223 | E18: 47580 | F18: 102321 | G18: 92089 | H18: 10232 | I18: 373482 | J18: 336134 | K18: 37348
A19: Hampden County | B19: 0.06923298429 | C19: 738871 | D19: 664984 | E19: 73887 | F19: 158893 | G19: 143004 | H19: 15889 | I19: 579978 | J19: 521980 | K19: 57998
A20: Merrimack Valley | B20: 0.05994528796 | C20: 639750 | D20: 575775 | E20: 63975 | F20: 137577 | G20: 123819 | H20: 13758 | I20: 502173 | J20: 451956 | K20: 50217
A21: Metro North | B21: 0.1032887435 | C21: 1102321 | D21: 992089 | E21: 110232 | F21: 237052 | G21: 213347 | H21: 23705 | I21: 865269 | J21: 778742 | K21: 86527
A22: Metro South/West | B22: 0.1031531414 | C22: 1100873 | D22: 990786 | E22: 110087 | F22: 236741 | G22: 213067 | H22: 23674 | I22: 864132 | J22: 777719 | K22: 86413
A23: North Central | B23: 0.04628403141 | C23: 493954 | D23: 444559 | E23: 49395 | F23: 106224 | G23: =ROUND(F23*0.9,0) -> 95602 | H23: =F23-G23 -> 10622 | I23: 387730 | J23: 348957 | K23: 38773
A24: North Shore | B24: 0.0752882199 | C24: 803494 | D24: 723145 | E24: 80349 | F24: 172790 | G24: =ROUND(F24*0.9,0) -> 155511 | H24: 17279 | I24: 630704 | J24: 567634 | K24: 63070
A25: South Shore | B25: 0.07224790576 | C25: 771047 | D25: 693942 | E25: 77105 | F25: =ROUND(B25*$F$26,0) -> 165812 | G25: =ROUND(F25*0.9,0) -> 149231 | H25: 16581 | I25: 605235 | J25: 544711 | K25: 60524
A26: TOTAL | B26: 1 | C26: =SUM(C10:C25) -> 10672234 | D26: =SUM(D10:D25) -> 9605013 | E26: =SUM(E10:E25) -> 1067221 | F26: 2295046 | G26: =SUM(G10:G25) -> 2065542 | H26: =SUM(H10:H25) -> 229503 | I26: =C26-F26 -> 8377188 | J26: =SUM(J10:J25) -> 7539471 | K26: =SUM(K10:K25) -> 837718
A27: Source:
A28: 1. FY 2027 Initial state program allotments published in Training and Employment Guidance Letter (TEGL) 10-25, April 28,2026
A29: USDOL will issue allotments in two Notices of Award (NOA) one for July 1, 2025 (base allotment) and one for October 1, 2025 (advance allotment). Totals may not add due to rounding.
A31: Prepared by: MassHire Department of Career Services | I31: Date: | J31: 2026-06-16

Sheet Adult HH (hidden)
A1: 2007-04-15
A2: FY2008 WIA Title I Adult HH Calculation
D4: Hold
B5: Straight | C5: 90% Hold | D5: Harmless | E5: Formula | F5: Adjusted | G5: Adjusted
A6: Areas | B6: Formula | C6: Harmless | D6: 0.9 | E6: If> Hold- | F6: Formula | G6: FY2008 Formula
B7: Share | C7: Share | D7: If > Formula | E7: Harmless | F7: F x (100-D/Total F) | G7: Share
A8: Berkshire County | B8: =#REF! ->  | C8: =#REF! ->  | D8: =C8 ->  | F8: =+E8*(76.84/81.64) -> 0 | G8: =D8 -> 
A9: Boston | B9: =#REF! ->  | C9: =#REF! ->  | E9: =B9 ->  | F9: =+E9*(76.84/81.64) ->  | G9: =F9 -> 
A10: Bristol County | B10: =#REF! ->  | C10: =#REF! ->  | E10: =B10 ->  | G10: =F10 -> 
A11: Brockton | B11: =#REF! ->  | C11: =#REF! ->  | E11: =B11 ->  | G11: =F11 -> 
A12: Cape Cod & Islands | B12: =#REF! ->  | C12: =#REF! ->  | D12: =C12 ->  | F12: 0 | G12: =D12 -> 
A13: Central Mass | B13: =#REF! ->  | C13: =#REF! ->  | E13: =B13 ->  | G13: =F13 -> 
A14: Franklin/Hampshire | B14: =#REF! ->  | C14: =#REF! ->  | E14: =B14 ->  | G14: =F14 -> 
A15: Greater Lowell | B15: =#REF! ->  | C15: =#REF! ->  | E15: =B15 ->  | G15: =F15 -> 
A16: Gtr New Bedford | B16: =#REF! ->  | C16: =#REF! ->  | D16: =C16 ->  | F16: 0 | G16: =D16 -> 
A17: Hampden County | B17: =#REF! ->  | C17: =#REF! ->  | E17: =B17 ->  | G17: =F17 -> 
A18: Lower Merrimack | B18: =#REF! ->  | C18: =#REF! ->  | D18: =C18 ->  | F18: 0 | G18: =D18 -> 
A19: Metro North | B19: =#REF! ->  | C19: =#REF! ->  | E19: =B19 ->  | G19: =F19 -> 
A20: Metro South/West | B20: =#REF! ->  | C20: =#REF! ->  | E20: =B20 ->  | G20: =F20 -> 
A21: North Central | B21: =#REF! ->  | C21: =#REF! ->  | E21: =B21 ->  | G21: =F21 -> 
A22: North Shore | B22: =#REF! ->  | C22: =#REF! ->  | E22: =B22 ->  | G22: =F22 -> 
A23: South Coastal | B23: =#REF! ->  | C23: =#REF! ->  | E23: =B23 ->  | G23: =F23 -> 
A24: TOTAL | B24: 1 | C24: 0.9 | D24: =SUM(D8:D23) ->  | E24: =SUM(E8:E23) ->  | F24: =SUM(F8:F23) ->  | G24: =SUM(G8:G23) -> 
F26: 1
F27: =D24 -> 
F28: =+F26-F27 -> 

Sheet Youth HH (hidden)
A1: 2007-04-15
A2: FY2008 WIA Title I Youth HH Calculation
B3: b | C3: c | D3: d | E3: e | F3: f | G3: g
B4: v | D4: Hold | G4: not rounded
B5: Straight | C5: 90% Hold | D5: Harmless | E5: Formula | F5: Adjusted | G5: Final Adjusted
A6: Areas | B6: Formula | C6: Harmless | D6: 0.9 | E6: If> Hold- | F6: Formula | G6: FY2008 Formula
B7: Share | C7: Share | D7: If > Formula | E7: Harmless | F7: F x (100-E/Total F) | G7: Share
A8: Berkshire County | B8: =#REF! ->  | C8: =#REF! ->  | D8: =C8 ->  | F8: =+E8*(74.12/78.4) -> 0 | G8: =(+D8) -> 
A9: Boston | B9: =#REF! ->  | C9: =#REF! ->  | E9: =B9 ->  | F9: =+E9*(74.12/78.4) ->  | G9: =F9 -> 
A10: Bristol County | B10: =#REF! ->  | C10: =#REF! ->  | E10: =B10 ->  | G10: =F10 -> 
A11: Brockton | B11: =#REF! ->  | C11: =#REF! ->  | E11: =B11 ->  | G11: =+F11 -> 
A12: Cape Cod & Islands | B12: =#REF! ->  | C12: =#REF! ->  | D12: =C12 ->  | F12: 0 | G12: =D12 -> 
A13: Central Mass | B13: =#REF! ->  | C13: =#REF! ->  | E13: 0.0847 | F13: 0.08007607143 | G13: =F13 -> 0.08007607143
A14: Franklin/Hampshire | B14: =#REF! ->  | C14: =#REF! ->  | E14: =B14 ->  | G14: =+F14 -> 
A15: Greater Lowell | B15: =#REF! ->  | C15: =#REF! ->  | D15: 0.0454 | F15: 0 | G15: =D15 -> 0.0454
A16: Gtr New Bedford | B16: =#REF! ->  | C16: =#REF! ->  | D16: =C16 ->  | F16: 0 | G16: =+D16 -> 
A17: Hampden County | B17: =#REF! ->  | C17: =#REF! ->  | E17: =B17 ->  | G17: =F17 -> 
A18: Lower Merrimack | B18: =#REF! ->  | C18: =#REF! ->  | D18: =C18 ->  | F18: 0 | G18: =+D18 -> 
A19: Metro North | B19: =#REF! ->  | C19: =#REF! ->  | E19: =B19 ->  | G19: =+F19 -> 
A20: Metro South/West | B20: =#REF! ->  | C20: =#REF! ->  | E20: 0.0375 | F20: 0.03545280612 | G20: =F20 -> 0.03545280612
A21: North Central | B21: =#REF! ->  | C21: =#REF! ->  | E21: =B21 ->  | G21: =+F21 -> 
A22: North Shore | B22: =#REF! ->  | C22: =#REF! ->  | E22: =B22 ->  | G22: =+F22 -> 
A23: South Coastal | B23: =#REF! ->  | C23: =#REF! ->  | E23: 0.0506 | F23: 0.04783765306 | G23: =F23 -> 0.04783765306
A24: TOTAL | B24: 1 | C24: 0.9 | D24: =SUM(D8:D23) ->  | E24: =SUM(E8:E23) ->  | F24: =SUM(F8:F23) ->  | G24: =SUM(G8:G23) -> 
F26: 1
F27: =+D24 -> 
F28: =+F26-F27 -> 
